[Event "December 5 Early 2023"]
[Site "https://www.chess.com"]
[Date "2023.12.05"]
[Round "7"]
[White "Martinez Alcantara, Jose Eduardo"]
[Black "Xu, Yi"]
[Result "1-0"]
[Board "13"]
[TimeControl "180+1"]
[WhiteFideId "3805662"]
[BlackFideId "8605564"]
[WhiteElo "2990"]
[BlackElo "2863"]
[WhiteTeam "PER"]
[BlackTeam "CHN"]
[WhiteClock "0:00:14"]
[BlackClock "0:00:00"]

1. e4 {[%clk 0:03:00]}  e5 {[%clk 0:03:00]} 2. Nf3 {[%clk 0:03:01]}  Nc6 {[%clk 0:03:01]} 3. Nc3 {[%clk 0:03:02]}  Nf6 {[%clk 0:03:00]} 4. h3 {[%clk 0:03:02]}  Bb4 {[%clk 0:02:36]} 5. a3 {[%clk 0:03:02]}  Bxc3 {[%clk 0:02:29]} 6. dxc3 {[%clk 0:03:03]}  Nxe4 {[%clk 0:02:26]} 7. Nxe5 {[%clk 0:03:01]}  Nxe5 {[%clk 0:02:23]} 8. Qd4 {[%clk 0:03:00]}  O-O {[%clk 0:02:22]} 9. Qxe4 {[%clk 0:03:00]}  d5 {[%clk 0:02:19]} 10. Qd4 {[%clk 0:02:59]}  Bf5 {[%clk 0:02:15]} 11. Be3 {[%clk 0:02:26]}  Nc4 {[%clk 0:02:15]} 12. Bxc4 {[%clk 0:02:01]}  dxc4 {[%clk 0:02:15]} 13. O-O-O {[%clk 0:02:02]}  Qxd4 {[%clk 0:02:15]} 14. Rxd4 {[%clk 0:02:03]}  Be6 {[%clk 0:02:15]} 15. Rhd1 {[%clk 0:02:04]}  c6 {[%clk 0:02:08]} 16. h4 {[%clk 0:02:04]}  Bd5 {[%clk 0:02:07]} 17. g3 {[%clk 0:01:50]}  Rfe8 {[%clk 0:02:06]} 18. R4d2 {[%clk 0:01:50]}  b6 {[%clk 0:02:02]} 19. Kb1 {[%clk 0:01:51]}  Re6 {[%clk 0:02:01]} 20. a4 {[%clk 0:01:48]}  f6 {[%clk 0:01:59]} 21. Ka2 {[%clk 0:01:48]}  Kf7 {[%clk 0:01:58]} 22. Ka3 {[%clk 0:01:49]}  Rae8 {[%clk 0:01:47]} 23. Rd4 {[%clk 0:01:46]}  h5 {[%clk 0:01:42]} 24. b3 {[%clk 0:01:43]}  cxb3 {[%clk 0:01:35]} 25. cxb3 {[%clk 0:01:44]}  Bf3 {[%clk 0:01:34]} 26. Rd7+ {[%clk 0:01:40]}  R6e7 {[%clk 0:01:32]} 27. R1d2 {[%clk 0:01:39]}  Rxd7 {[%clk 0:01:29]} 28. Rxd7+ {[%clk 0:01:40]}  Re7 {[%clk 0:01:29]} 29. Rd8 {[%clk 0:01:37]}  Re8 {[%clk 0:01:28]} 30. Rd2 {[%clk 0:01:37]}  c5 {[%clk 0:01:25]} 31. a5 {[%clk 0:01:33]}  Ke7 {[%clk 0:01:21]} 32. c4 {[%clk 0:01:10]}  Rd8 {[%clk 0:01:17]} 33. Ra2 {[%clk 0:01:10]}  Kd7 {[%clk 0:01:12]} 34. Kb2 {[%clk 0:01:09]}  Kc8 {[%clk 0:01:02]} 35. Kc3 {[%clk 0:00:50]}  Kb7 {[%clk 0:01:00]} 36. b4 {[%clk 0:00:42]}  cxb4+ {[%clk 0:00:59]} 37. Kxb4 {[%clk 0:00:43]}  Rd1 {[%clk 0:00:54]} 38. axb6 {[%clk 0:00:40]}  axb6 {[%clk 0:00:54]} 39. Kc3 {[%clk 0:00:39]}  Be4 {[%clk 0:00:50]} 40. Ra4 {[%clk 0:00:35]}  Rd3+ {[%clk 0:00:49]} 41. Kb2 {[%clk 0:00:34]}  Bf3 {[%clk 0:00:15]} 42. Rb4 {[%clk 0:00:32]}  Rd6 {[%clk 0:00:16]} 43. c5 {[%clk 0:00:32]}  Rd3 {[%clk 0:00:15]} 44. Rxb6+ {[%clk 0:00:30]}  Kc7 {[%clk 0:00:14]} 45. Ra6 {[%clk 0:00:27]}  Bb7 {[%clk 0:00:13]} 46. Ra5 {[%clk 0:00:21]}  Kc6 {[%clk 0:00:13]} 47. Ra4 {[%clk 0:00:22]}  Kb5 {[%clk 0:00:12]} 48. Ra7 {[%clk 0:00:19]}  Kc6 {[%clk 0:00:11]} 49. Kc2 {[%clk 0:00:20]}  Rd7 {[%clk 0:00:09]} 50. Kc3 {[%clk 0:00:19]}  Kb5 {[%clk 0:00:09]} 51. Ra2 {[%clk 0:00:18]}  Be4 {[%clk 0:00:09]} 52. Rb2+ {[%clk 0:00:19]}  Ka6 {[%clk 0:00:04]} 53. Rb6+ {[%clk 0:00:17]}  Ka5 {[%clk 0:00:04]} 54. Bd2 {[%clk 0:00:12]}  Rd3+ {[%clk 0:00:03]} 55. Kc2+ {[%clk 0:00:13]}  Ka4 {[%clk 0:00:03]} 56. Rb4+ {[%clk 0:00:13]}  Ka3 {[%clk 0:00:00]} 57. Rxe4 {[%clk 0:00:14]} 1-0

[Event "December 5 Early 2023"]
[Site "https://www.chess.com"]
[Date "2023.12.05"]
[Round "7"]
[White "Tran, Tuan Minh"]
[Black "Yilmaz, Mustafa"]
[Result "1-0"]
[Board "14"]
[TimeControl "180+1"]
[WhiteFideId "12401820"]
[BlackFideId "6302718"]
[WhiteElo "2935"]
[BlackElo "2960"]
[WhiteTeam "VIE"]
[BlackTeam "TUR"]
[WhiteClock "0:00:05"]
[BlackClock "0:00:00"]

1. d4 {[%clk 0:03:00]}  Nf6 {[%clk 0:02:59]} 2. c4 {[%clk 0:02:59]}  e6 {[%clk 0:02:56]} 3. Nf3 {[%clk 0:02:59]}  c5 {[%clk 0:02:51]} 4. d5 {[%clk 0:02:59]}  d6 {[%clk 0:02:51]} 5. Nc3 {[%clk 0:02:59]}  exd5 {[%clk 0:02:51]} 6. cxd5 {[%clk 0:03:00]}  g6 {[%clk 0:02:52]} 7. e4 {[%clk 0:02:58]}  a6 {[%clk 0:02:51]} 8. a4 {[%clk 0:02:56]}  Bg4 {[%clk 0:02:51]} 9. Be2 {[%clk 0:02:56]}  Bg7 {[%clk 0:02:46]} 10. Nd2 {[%clk 0:02:56]}  Bxe2 {[%clk 0:02:46]} 11. Qxe2 {[%clk 0:02:57]}  O-O {[%clk 0:02:46]} 12. O-O {[%clk 0:02:58]}  Nbd7 {[%clk 0:02:44]} 13. a5 {[%clk 0:02:39]}  Ne5 {[%clk 0:02:39]} 14. f4 {[%clk 0:02:33]}  Ned7 {[%clk 0:02:32]} 15. Nc4 {[%clk 0:02:33]}  Ne8 {[%clk 0:02:19]} 16. e5 {[%clk 0:02:15]}  b5 {[%clk 0:02:19]} 17. axb6 {[%clk 0:02:10]}  Nxb6 {[%clk 0:02:19]} 18. e6 {[%clk 0:01:41]}  Nc8 {[%clk 0:01:43]} 19. f5 {[%clk 0:01:30]}  Ne7 {[%clk 0:01:09]} 20. fxg6 {[%clk 0:01:01]}  fxg6 {[%clk 0:00:52]} 21. Bg5 {[%clk 0:01:00]}  Bd4+ {[%clk 0:00:42]} 22. Kh1 {[%clk 0:00:59]}  Nf6 {[%clk 0:00:42]} 23. Ne4 {[%clk 0:00:45]}  Nexd5 {[%clk 0:00:34]} 24. Nexd6 {[%clk 0:00:13]}  Qe7 {[%clk 0:00:29]} 25. Rae1 {[%clk 0:00:14]}  Rad8 {[%clk 0:00:27]} 26. Nf7 {[%clk 0:00:14]}  Rb8 {[%clk 0:00:20]} 27. Nh6+ {[%clk 0:00:11]}  Kg7 {[%clk 0:00:19]} 28. Ng4 {[%clk 0:00:10]}  h5 {[%clk 0:00:18]} 29. Bh6+ {[%clk 0:00:10]}  Kh7 {[%clk 0:00:17]} 30. Bxf8 {[%clk 0:00:11]}  Rxf8 {[%clk 0:00:16]} 31. Nxf6+ {[%clk 0:00:11]}  Nxf6 {[%clk 0:00:16]} 32. Ra1 {[%clk 0:00:10]}  Ng4 {[%clk 0:00:14]} 33. h3 {[%clk 0:00:08]}  Nf2+ {[%clk 0:00:14]} 34. Rxf2 {[%clk 0:00:05]}  Rxf2 {[%clk 0:00:14]} 35. Qe4 {[%clk 0:00:04]}  Kg7 {[%clk 0:00:13]} 36. Re1 {[%clk 0:00:02]}  Rf6 {[%clk 0:00:11]} 37. Qd5 {[%clk 0:00:02]}  h4 {[%clk 0:00:06]} 38. Nd6 {[%clk 0:00:02]}  Bxb2 {[%clk 0:00:03]} 39. Nc8 {[%clk 0:00:01]}  Qf8 {[%clk 0:00:02]} 40. Qd7+ {[%clk 0:00:02]}  Kh6 {[%clk 0:00:02]} 41. Qd3 {[%clk 0:00:03]}  Bd4 {[%clk 0:00:02]} 42. e7 {[%clk 0:00:03]}  Qe8 {[%clk 0:00:02]} 43. Qd2+ {[%clk 0:00:04]}  Kg7 {[%clk 0:00:02]} 44. Na7 {[%clk 0:00:04]}  Rf7 {[%clk 0:00:00]} 45. Qe2 {[%clk 0:00:05]} 1-0

[Event "December 5 Early 2023"]
[Site "https://www.chess.com"]
[Date "2023.12.05"]
[Round "7"]
[White "Shimanov, Aleksandr"]
[Black "Bocharov, Dmitry"]
[Result "1-0"]
[Board "15"]
[TimeControl "180+1"]
[WhiteFideId "4198603"]
[BlackFideId "4138716"]
[WhiteElo "2958"]
[BlackElo "2837"]
[WhiteTeam "RUS"]
[BlackTeam "RUS"]
[WhiteClock "0:00:14"]
[BlackClock "0:00:00"]

1. d4 {[%clk 0:03:00]}  Nf6 {[%clk 0:02:59]} 2. Bg5 {[%clk 0:03:00]}  d5 {[%clk 0:02:58]} 3. Nd2 {[%clk 0:02:59]}  c5 {[%clk 0:02:58]} 4. dxc5 {[%clk 0:02:58]}  e6 {[%clk 0:02:56]} 5. e4 {[%clk 0:02:58]}  Bxc5 {[%clk 0:02:56]} 6. e5 {[%clk 0:02:58]}  Qb6 {[%clk 0:02:54]} 7. exf6 {[%clk 0:02:57]}  Bxf2+ {[%clk 0:02:49]} 8. Ke2 {[%clk 0:02:57]}  e5 {[%clk 0:02:49]} 9. Nh3 {[%clk 0:02:56]}  Bxh3 {[%clk 0:02:20]} 10. gxh3 {[%clk 0:02:53]}  gxf6 {[%clk 0:02:20]} 11. Bh6 {[%clk 0:02:52]}  Nc6 {[%clk 0:02:13]} 12. Nb3 {[%clk 0:02:40]}  O-O-O {[%clk 0:02:11]} 13. Qd2 {[%clk 0:02:38]}  Bh4 {[%clk 0:01:50]} 14. Qe3 {[%clk 0:02:22]}  d4 {[%clk 0:01:28]} 15. Qe4 {[%clk 0:02:21]}  d3+ {[%clk 0:01:20]} 16. cxd3 {[%clk 0:02:10]}  Qf2+ {[%clk 0:01:18]} 17. Kd1 {[%clk 0:02:11]}  Rhg8 {[%clk 0:01:06]} 18. Rc1 {[%clk 0:01:51]}  Kb8 {[%clk 0:00:50]} 19. Be3 {[%clk 0:01:46]}  Qe1+ {[%clk 0:00:37]} 20. Kc2 {[%clk 0:01:45]}  Qb4 {[%clk 0:00:27]} 21. Kb1 {[%clk 0:01:45]}  Bg5 {[%clk 0:00:20]} 22. Bxg5 {[%clk 0:01:43]}  Rxg5 {[%clk 0:00:20]} 23. Be2 {[%clk 0:01:35]}  Qb6 {[%clk 0:00:17]} 24. Bf3 {[%clk 0:01:33]}  a6 {[%clk 0:00:15]} 25. Rc3 {[%clk 0:01:25]}  f5 {[%clk 0:00:15]} 26. Qc4 {[%clk 0:01:18]}  e4 {[%clk 0:00:15]} 27. dxe4 {[%clk 0:01:13]}  Ne5 {[%clk 0:00:16]} 28. Qe2 {[%clk 0:01:13]}  f4 {[%clk 0:00:15]} 29. Nc5 {[%clk 0:01:11]}  Rg6 {[%clk 0:00:15]} 30. Rhc1 {[%clk 0:01:10]}  Rc6 {[%clk 0:00:14]} 31. Rb3 {[%clk 0:01:08]}  Qxc5 {[%clk 0:00:09]} 32. Rxc5 {[%clk 0:01:08]}  Rxc5 {[%clk 0:00:09]} 33. a3 {[%clk 0:01:06]}  Rd6 {[%clk 0:00:09]} 34. Qf2 {[%clk 0:01:01]}  Rdc6 {[%clk 0:00:09]} 35. Bg4 {[%clk 0:00:58]}  Rc1+ {[%clk 0:00:09]} 36. Ka2 {[%clk 0:00:58]}  f3 {[%clk 0:00:09]} 37. Bxf3 {[%clk 0:00:56]}  R1c2 {[%clk 0:00:09]} 38. Qg3 {[%clk 0:00:55]}  f6 {[%clk 0:00:10]} 39. Qg8+ {[%clk 0:00:36]}  Ka7 {[%clk 0:00:09]} 40. Qxh7 {[%clk 0:00:36]}  Rc7 {[%clk 0:00:10]} 41. Qf5 {[%clk 0:00:36]}  R2c6 {[%clk 0:00:10]} 42. h4 {[%clk 0:00:35]}  a5 {[%clk 0:00:07]} 43. h5 {[%clk 0:00:35]}  a4 {[%clk 0:00:08]} 44. Rb4 {[%clk 0:00:35]}  Nd3 {[%clk 0:00:05]} 45. Rxa4+ {[%clk 0:00:36]}  Kb8 {[%clk 0:00:06]} 46. Rd4 {[%clk 0:00:29]}  Nc1+ {[%clk 0:00:06]} 47. Kb1 {[%clk 0:00:29]}  Nb3 {[%clk 0:00:05]} 48. Rd8+ {[%clk 0:00:29]}  Ka7 {[%clk 0:00:04]} 49. Qb5 {[%clk 0:00:21]}  Rb6 {[%clk 0:00:00]} 50. Qa4+ {[%clk 0:00:14]} 1-0

[Event "December 5 Early 2023"]
[Site "https://www.chess.com"]
[Date "2023.12.05"]
[Round "7"]
[White "Drygalov, Sergey"]
[Black "Wagner, Dennis"]
[Result "1-0"]
[Board "16"]
[TimeControl "180+1"]
[WhiteFideId "24171743"]
[BlackFideId "24650684"]
[WhiteElo "2955"]
[BlackElo "2778"]
[WhiteTeam "RUS"]
[BlackTeam "GER"]
[WhiteClock "0:00:12"]
[BlackClock "0:00:06"]

1. d4 {[%clk 0:03:00]}  Nf6 {[%clk 0:02:59]} 2. c4 {[%clk 0:03:01]}  e6 {[%clk 0:03:00]} 3. Nf3 {[%clk 0:03:02]}  b6 {[%clk 0:02:59]} 4. g3 {[%clk 0:03:01]}  Bb7 {[%clk 0:02:59]} 5. Bg2 {[%clk 0:03:01]}  Bb4+ {[%clk 0:03:00]} 6. Bd2 {[%clk 0:03:01]}  c5 {[%clk 0:03:00]} 7. Bxb4 {[%clk 0:02:59]}  cxb4 {[%clk 0:03:01]} 8. O-O {[%clk 0:03:00]}  O-O {[%clk 0:03:02]} 9. a3 {[%clk 0:02:57]}  bxa3 {[%clk 0:03:01]} 10. Nxa3 {[%clk 0:02:58]}  a5 {[%clk 0:03:00]} 11. Nb5 {[%clk 0:02:57]}  Na6 {[%clk 0:02:47]} 12. Nd6 {[%clk 0:02:51]}  Bc6 {[%clk 0:02:47]} 13. d5 {[%clk 0:02:20]}  exd5 {[%clk 0:02:43]} 14. Nd4 {[%clk 0:02:20]}  Nb4 {[%clk 0:02:36]} 15. cxd5 {[%clk 0:02:16]}  Bxd5 {[%clk 0:02:32]} 16. e4 {[%clk 0:02:16]}  Qb8 {[%clk 0:02:18]} 17. N4f5 {[%clk 0:01:57]}  Bc6 {[%clk 0:01:44]} 18. Qd2 {[%clk 0:01:55]}  Ne8 {[%clk 0:00:58]} 19. Qc3 {[%clk 0:01:14]}  f6 {[%clk 0:00:49]} 20. Rad1 {[%clk 0:01:05]}  Nxd6 {[%clk 0:00:45]} 21. Nxd6 {[%clk 0:01:05]}  b5 {[%clk 0:00:39]} 22. Qb3+ {[%clk 0:01:03]}  Kh8 {[%clk 0:00:27]} 23. e5 {[%clk 0:01:02]}  Bxg2 {[%clk 0:00:22]} 24. Kxg2 {[%clk 0:01:02]}  fxe5 {[%clk 0:00:09]} 25. Nf7+ {[%clk 0:01:02]}  Rxf7 {[%clk 0:00:10]} 26. Qxf7 {[%clk 0:01:03]}  d5 {[%clk 0:00:09]} 27. Rc1 {[%clk 0:01:04]}  Qg8 {[%clk 0:00:05]} 28. Rc7 {[%clk 0:00:46]}  Qxf7 {[%clk 0:00:03]} 29. Rxf7 {[%clk 0:00:46]}  Nd3 {[%clk 0:00:03]} 30. Rd7 {[%clk 0:00:39]}  d4 {[%clk 0:00:03]} 31. f4 {[%clk 0:00:39]}  exf4 {[%clk 0:00:02]} 32. Rxd4 {[%clk 0:00:38]}  Nxb2 {[%clk 0:00:03]} 33. Rdxf4 {[%clk 0:00:33]}  h6 {[%clk 0:00:03]} 34. Rb1 {[%clk 0:00:32]}  Nd3 {[%clk 0:00:02]} 35. Rf3 {[%clk 0:00:23]}  Nb4 {[%clk 0:00:03]} 36. Rf5 {[%clk 0:00:20]}  Rb8 {[%clk 0:00:03]} 37. h4 {[%clk 0:00:20]}  Kh7 {[%clk 0:00:04]} 38. h5 {[%clk 0:00:20]}  Rb7 {[%clk 0:00:04]} 39. Rc5 {[%clk 0:00:19]}  Rb8 {[%clk 0:00:04]} 40. g4 {[%clk 0:00:20]}  Rb7 {[%clk 0:00:05]} 41. Kg3 {[%clk 0:00:20]}  Rb8 {[%clk 0:00:05]} 42. Kh4 {[%clk 0:00:20]}  Rb7 {[%clk 0:00:06]} 43. g5 {[%clk 0:00:20]}  hxg5+ {[%clk 0:00:06]} 44. Kxg5 {[%clk 0:00:21]}  Rb8 {[%clk 0:00:06]} 45. Rc7 {[%clk 0:00:18]}  Rd8 {[%clk 0:00:06]} 46. Rg1 {[%clk 0:00:14]}  Rd5+ {[%clk 0:00:06]} 47. Kf4 {[%clk 0:00:12]}  Rxh5 {[%clk 0:00:05]} 48. Rgxg7+ {[%clk 0:00:12]}  Kh6 {[%clk 0:00:05]} 49. Rh7+ {[%clk 0:00:08]}  Kg6 {[%clk 0:00:05]} 50. Rhg7+ {[%clk 0:00:08]}  Kf6 {[%clk 0:00:06]} 51. Rgf7+ {[%clk 0:00:08]}  Ke6 {[%clk 0:00:06]} 52. Rfe7+ {[%clk 0:00:09]}  Kd6 {[%clk 0:00:06]} 53. Red7+ {[%clk 0:00:09]}  Ke6 {[%clk 0:00:07]} 54. Ra7 {[%clk 0:00:07]}  Nd5+ {[%clk 0:00:06]} 55. Kf3 {[%clk 0:00:06]}  Rf5+ {[%clk 0:00:07]} 56. Ke2 {[%clk 0:00:06]}  a4 {[%clk 0:00:07]} 57. Rdb7 {[%clk 0:00:06]}  Re5+ {[%clk 0:00:06]} 58. Kd3 {[%clk 0:00:06]}  Nf4+ {[%clk 0:00:06]} 59. Kd4 {[%clk 0:00:05]}  Ne2+ {[%clk 0:00:05]} 60. Kd3 {[%clk 0:00:06]}  Nf4+ {[%clk 0:00:06]} 61. Kc3 {[%clk 0:00:06]}  Nd5+ {[%clk 0:00:06]} 62. Kd4 {[%clk 0:00:06]}  Kf5 {[%clk 0:00:05]} 63. Rf7+ {[%clk 0:00:06]}  Nf6 {[%clk 0:00:05]} 64. Ra6 {[%clk 0:00:06]}  Re4+ {[%clk 0:00:05]} 65. Kc5 {[%clk 0:00:06]}  Re5+ {[%clk 0:00:05]} 66. Kb4 {[%clk 0:00:06]}  Re6 {[%clk 0:00:06]} 67. Ra8 {[%clk 0:00:05]}  Ke5 {[%clk 0:00:05]} 68. Kxb5 {[%clk 0:00:05]}  Ne4 {[%clk 0:00:05]} 69. Rf1 {[%clk 0:00:03]}  Nd6+ {[%clk 0:00:06]} 70. Kxa4 {[%clk 0:00:04]}  Rh6 {[%clk 0:00:06]} 71. Ra5+ {[%clk 0:00:04]}  Ke6 {[%clk 0:00:05]} 72. Re1+ {[%clk 0:00:04]}  Kd7 {[%clk 0:00:06]} 73. Ra7+ {[%clk 0:00:05]}  Kc6 {[%clk 0:00:06]} 74. Rc1+ {[%clk 0:00:05]}  Kb6 {[%clk 0:00:06]} 75. Rd7 {[%clk 0:00:05]}  Rh4+ {[%clk 0:00:06]} 76. Kb3 {[%clk 0:00:06]}  Rh3+ {[%clk 0:00:07]} 77. Kb2 {[%clk 0:00:06]}  Nb5 {[%clk 0:00:06]} 78. Rg7 {[%clk 0:00:04]}  Rh2+ {[%clk 0:00:06]} 79. Kb3 {[%clk 0:00:04]}  Rh3+ {[%clk 0:00:07]} 80. Kc4 {[%clk 0:00:04]}  Rh4+ {[%clk 0:00:07]} 81. Kd5 {[%clk 0:00:04]}  Rh5+ {[%clk 0:00:07]} 82. Ke4 {[%clk 0:00:04]}  Rh4+ {[%clk 0:00:08]} 83. Kf5 {[%clk 0:00:05]}  Rh5+ {[%clk 0:00:08]} 84. Kg4 {[%clk 0:00:05]}  Rd5 {[%clk 0:00:08]} 85. Rg6+ {[%clk 0:00:05]}  Ka5 {[%clk 0:00:08]} 86. Rb1 {[%clk 0:00:05]}  Rd4+ {[%clk 0:00:08]} 87. Kf3 {[%clk 0:00:05]}  Rd3+ {[%clk 0:00:09]} 88. Kf2 {[%clk 0:00:04]}  Rd2+ {[%clk 0:00:09]} 89. Ke3 {[%clk 0:00:04]}  Rd5 {[%clk 0:00:09]} 90. Rg8 {[%clk 0:00:04]}  Kb6 {[%clk 0:00:05]} 91. Ke4 {[%clk 0:00:04]}  Rd4+ {[%clk 0:00:05]} 92. Ke5 {[%clk 0:00:04]}  Rd2 {[%clk 0:00:02]} 93. Rb8+ {[%clk 0:00:04]}  Kc6 {[%clk 0:00:02]} 94. R8xb5 {[%clk 0:00:05]}  Re2+ {[%clk 0:00:02]} 95. Kd4 {[%clk 0:00:06]}  Rd2+ {[%clk 0:00:03]} 96. Ke3 {[%clk 0:00:06]}  Rh2 {[%clk 0:00:04]} 97. Rb6+ {[%clk 0:00:07]}  Kc5 {[%clk 0:00:04]} 98. Rb8 {[%clk 0:00:07]}  Rh3+ {[%clk 0:00:04]} 99. Kf4 {[%clk 0:00:08]}  Rh4+ {[%clk 0:00:04]} 100. Kg5 {[%clk 0:00:08]}  Ra4 {[%clk 0:00:05]} 101. Rc1+ {[%clk 0:00:09]}  Kd6 {[%clk 0:00:05]} 102. Rd8+ {[%clk 0:00:09]}  Ke7 {[%clk 0:00:06]} 103. Rd2 {[%clk 0:00:09]}  Ra5+ {[%clk 0:00:06]} 104. Kf4 {[%clk 0:00:10]}  Ra4+ {[%clk 0:00:06]} 105. Ke3 {[%clk 0:00:10]}  Ra3+ {[%clk 0:00:07]} 106. Rd3 {[%clk 0:00:11]}  Ra2 {[%clk 0:00:07]} 107. Re1 {[%clk 0:00:09]}  Kf6 {[%clk 0:00:07]} 108. Kf3 {[%clk 0:00:09]}  Kf5 {[%clk 0:00:08]} 109. Rd5+ {[%clk 0:00:09]}  Kf6 {[%clk 0:00:08]} 110. Re4 {[%clk 0:00:10]}  Ra3+ {[%clk 0:00:08]} 111. Kg4 {[%clk 0:00:10]}  Ra1 {[%clk 0:00:08]} 112. Rf5+ {[%clk 0:00:10]}  Kg6 {[%clk 0:00:09]} 113. Re6+ {[%clk 0:00:11]}  Kg7 {[%clk 0:00:09]} 114. Rb5 {[%clk 0:00:10]}  Ra7 {[%clk 0:00:08]} 115. Reb6 {[%clk 0:00:10]}  Ra1 {[%clk 0:00:08]} 116. Rd6 {[%clk 0:00:10]}  Ra7 {[%clk 0:00:07]} 117. Kh5 {[%clk 0:00:10]}  Rc7 {[%clk 0:00:07]} 118. Rg5+ {[%clk 0:00:10]}  Kf7 {[%clk 0:00:07]} 119. Rh6 {[%clk 0:00:10]}  Rc1 {[%clk 0:00:06]} 120. Rf5+ {[%clk 0:00:11]}  Kg7 {[%clk 0:00:07]} 121. Rg6+ {[%clk 0:00:11]}  Kh7 {[%clk 0:00:07]} 122. Rf7+ {[%clk 0:00:11]}  Kh8 {[%clk 0:00:08]} 123. Ra6 {[%clk 0:00:11]}  Rh1+ {[%clk 0:00:08]} 124. Kg4 {[%clk 0:00:11]}  Rg1+ {[%clk 0:00:08]} 125. Kh3 {[%clk 0:00:11]}  Kg8 {[%clk 0:00:07]} 126. Rb7 {[%clk 0:00:10]}  Kh8 {[%clk 0:00:06]} 127. Ra8+ {[%clk 0:00:10]}  Rg8 {[%clk 0:00:07]} 128. Rxg8+ {[%clk 0:00:11]}  Kxg8 {[%clk 0:00:06]} 129. Kg4 {[%clk 0:00:12]} 1-0

[Event "December 5 Early 2023"]
[Site "https://www.chess.com"]
[Date "2023.12.05"]
[Round "7"]
[White "Mamedov, Edgar"]
[Black "Movsesian, Sergei"]
[Result "1-0"]
[Board "18"]
[TimeControl "180+1"]
[WhiteFideId "13739980"]
[BlackFideId "310204"]
[WhiteElo "2742"]
[BlackElo "2853"]
[WhiteTeam "KAZ"]
[BlackTeam "ARM"]
[WhiteClock "0:00:05"]
[BlackClock "0:00:06"]

1. d4 {[%clk 0:03:00]}  Nf6 {[%clk 0:02:59]} 2. Bg5 {[%clk 0:03:00]}  c5 {[%clk 0:02:56]} 3. Bxf6 {[%clk 0:02:57]}  gxf6 {[%clk 0:02:55]} 4. d5 {[%clk 0:02:58]}  Qb6 {[%clk 0:02:55]} 5. Qc1 {[%clk 0:02:57]}  f5 {[%clk 0:02:52]} 6. c4 {[%clk 0:02:55]}  Bg7 {[%clk 0:02:49]} 7. Nc3 {[%clk 0:02:55]}  e6 {[%clk 0:02:49]} 8. e3 {[%clk 0:02:53]}  Na6 {[%clk 0:02:46]} 9. Nf3 {[%clk 0:02:46]}  d6 {[%clk 0:02:45]} 10. Be2 {[%clk 0:02:42]}  Bd7 {[%clk 0:02:44]} 11. O-O {[%clk 0:02:37]}  h5 {[%clk 0:02:41]} 12. Rb1 {[%clk 0:02:30]}  h4 {[%clk 0:02:40]} 13. h3 {[%clk 0:02:30]}  Qd8 {[%clk 0:02:38]} 14. e4 {[%clk 0:02:23]}  Qf6 {[%clk 0:02:27]} 15. exf5 {[%clk 0:02:20]}  Qxf5 {[%clk 0:02:26]} 16. dxe6 {[%clk 0:02:15]}  fxe6 {[%clk 0:02:24]} 17. Rd1 {[%clk 0:02:15]}  Bf8 {[%clk 0:02:16]} 18. Bd3 {[%clk 0:02:13]}  Qh5 {[%clk 0:02:08]} 19. Be2 {[%clk 0:01:29]}  O-O-O {[%clk 0:01:52]} 20. Ne4 {[%clk 0:01:25]}  Bc6 {[%clk 0:01:45]} 21. Nd4 {[%clk 0:01:20]}  Qg6 {[%clk 0:01:33]} 22. Nxc6 {[%clk 0:01:18]}  bxc6 {[%clk 0:01:33]} 23. Qf4 {[%clk 0:01:06]}  e5 {[%clk 0:01:27]} 24. Bg4+ {[%clk 0:00:43]}  Kb8 {[%clk 0:00:52]} 25. Qe3 {[%clk 0:00:41]}  Rh7 {[%clk 0:00:39]} 26. b4 {[%clk 0:00:27]}  cxb4 {[%clk 0:00:38]} 27. a3 {[%clk 0:00:22]}  Rb7 {[%clk 0:00:37]} 28. axb4 {[%clk 0:00:21]}  Nxb4 {[%clk 0:00:37]} 29. Nc5 {[%clk 0:00:21]}  Qxb1 {[%clk 0:00:24]} 30. Nxb7 {[%clk 0:00:12]}  Qxd1+ {[%clk 0:00:19]} 31. Bxd1 {[%clk 0:00:12]}  Kxb7 {[%clk 0:00:19]} 32. Qg5 {[%clk 0:00:11]}  Kc7 {[%clk 0:00:18]} 33. Qxh4 {[%clk 0:00:10]}  a5 {[%clk 0:00:18]} 34. Ba4 {[%clk 0:00:07]}  Na6 {[%clk 0:00:17]} 35. Qe4 {[%clk 0:00:06]}  Nb4 {[%clk 0:00:17]} 36. h4 {[%clk 0:00:05]}  Be7 {[%clk 0:00:16]} 37. h5 {[%clk 0:00:05]}  Rh8 {[%clk 0:00:16]} 38. Qg6 {[%clk 0:00:05]}  Kd7 {[%clk 0:00:14]} 39. h6 {[%clk 0:00:05]}  Bf8 {[%clk 0:00:11]} 40. h7 {[%clk 0:00:06]}  Ke7 {[%clk 0:00:06]} 41. Qg8 {[%clk 0:00:05]} 1-0

[Event "December 5 Early 2023"]
[Site "https://www.chess.com"]
[Date "2023.12.05"]
[Round "7"]
[White "So, Wesley"]
[Black "Bachmann, Axel"]
[Result "1-0"]
[Board "19"]
[TimeControl "180+1"]
[WhiteFideId "5202213"]
[BlackFideId "3700488"]
[WhiteElo "3043"]
[BlackElo "2845"]
[WhiteTeam "USA"]
[BlackTeam "PAR"]
[WhiteClock "0:01:41"]
[BlackClock "0:00:53"]

1. b3 {[%clk 0:03:00]}  c5 {[%clk 0:02:56]} 2. Bb2 {[%clk 0:03:01]}  d6 {[%clk 0:02:55]} 3. f4 {[%clk 0:02:49]}  Nc6 {[%clk 0:02:53]} 4. Nf3 {[%clk 0:02:48]}  Bg4 {[%clk 0:02:52]} 5. e3 {[%clk 0:02:46]}  e5 {[%clk 0:02:49]} 6. h3 {[%clk 0:02:40]}  Bd7 {[%clk 0:02:35]} 7. Bc4 {[%clk 0:02:33]}  Na5 {[%clk 0:01:59]} 8. fxe5 {[%clk 0:02:27]}  Nxc4 {[%clk 0:01:58]} 9. bxc4 {[%clk 0:02:28]}  dxe5 {[%clk 0:01:54]} 10. Bxe5 {[%clk 0:02:26]}  f6 {[%clk 0:01:43]} 11. Bh2 {[%clk 0:02:26]}  Be6 {[%clk 0:01:40]} 12. Qe2 {[%clk 0:02:17]}  Nh6 {[%clk 0:01:39]} 13. Nc3 {[%clk 0:02:14]}  Be7 {[%clk 0:01:40]} 14. O-O {[%clk 0:02:14]}  O-O {[%clk 0:01:40]} 15. e4 {[%clk 0:02:11]}  Bd6 {[%clk 0:01:37]} 16. d3 {[%clk 0:01:59]}  Bxh2+ {[%clk 0:01:25]} 17. Kxh2 {[%clk 0:02:00]}  Nf7 {[%clk 0:01:25]} 18. Rab1 {[%clk 0:01:58]}  Qd6+ {[%clk 0:01:21]} 19. Kh1 {[%clk 0:01:51]}  b6 {[%clk 0:01:22]} 20. a4 {[%clk 0:01:47]}  Rfe8 {[%clk 0:01:16]} 21. Qf2 {[%clk 0:01:45]}  Bd7 {[%clk 0:01:14]} 22. a5 {[%clk 0:01:43]}  bxa5 {[%clk 0:01:04]} 23. Ra1 {[%clk 0:01:43]}  Qc7 {[%clk 0:00:53]} 24. Nd5 {[%clk 0:01:41]} 1-0